[Event "Torneo Interdepartamental 2019"]
[Site "Montevideo"]
[Date "2019.08.25"]
[Round "5.9"]
[White "Malan, Lucia"]
[Black "Campora, Edgardo"]
[Result "1-0"]
[ECO "B06"]
[WhiteElo "1831"]
[BlackElo "1666"]
[Annotator "NA"]
[PlyCount "85"]
[EventDate "2019.08.23"]
[EventType "team-tourn"]
[EventCountry "URU"]
[SourceTitle "playchess.com"]
[Source "ChessBase"]
[SourceQuality "1"]
[TimeControl "5400+30"]

1. e4 {[%emt 0:05:41]} g6 {[%emt 0:00:43]} 2. d4 {[%emt 0:00:18]} Bg7 {[%emt 0:00:05]} 3. Be3 {[%emt 0:00:28]} d6 {[%emt 0:01:49]} 4. Nc3 {[%emt 0:00:41]} e5 {[%emt 0:01:00]} 5. Nf3 {[%emt 0:01:16]} Nd7 {[%emt 0:00:35]} 6. Bc4 {[%emt 0:02:20] B06: Modern Defence} (6. dxe5 dxe5 7. Bc4 Ngf6 8. h3 O-O 9. O-O Qe7 10. Qe2 c6 11. a4 a5 12. Rad1 Nc5 13. Rfe1 Ncxe4 14. Nxe4 Nxe4 15. Bb6 Qb4 16. Bc7 Qe7 17. Bxe5 Ng5 18. Nxg5 Qxg5 19. Bd6 Bxh3 20. f4 Qg4 21. Bxf8 Bxf8 22. Qxg4 Bxg4 {½-½ (50) Fressinet,L (2575)-Spassky,B (2551) Paris 2001}) 6... Ne7 {[%emt 0:02:30]} 7. Qd2 {[%emt 0:02:39]} O-O {[%emt 0:03:06]} 8. O-O-O {[%emt 0:02:07]} c6 $146 {[%emt 0:02:37]} ({Predecessor:} 8... Nb6 9. Bb3 Nc6 10. Bg5 Bf6 11. dxe5 Nxe5 12. h4 Qe7 13. Qf4 Bxg5 14. hxg5 Nxf3 15. gxf3 Qe5 16. Qh4 Qg7 17. e5 dxe5 18. Ne4 h6 19. Nf6+ Kh8 20. Qxh6+ {1-0 (20) Hoare,A (2069)-Sparvang,J (1619) Helsingor 2015}) 9. dxe5 {[%emt 0:03:59]} dxe5 {[%emt 0:01:09]} 10. Bh6 {[%emt 0:07:58]} Qc7 {[%emt 0:04:02]} 11. Bxg7 {[%emt 0:05:06]} Kxg7 {[%emt 0:00:03]} 12. Ng5 {[%emt 0:00:53]} Nc5 {[%emt 0:05:24]} 13. f4 {[%emt 0:10:46]} b5 {[%emt 0:01:25]} 14. Be2 {[%emt 0:04:13]} Ne6 {[%emt 0:15:22]} 15. f5 {[%emt 0:04:47]} Nd4 {[%emt 0:05:36]} 16. f6+ {[%emt 0:00:50]} Kxf6 {[%emt 0:00:15]} 17. Nxh7+ {[%emt 0:00:11]} Kg7 {[%emt 0:00:04]} 18. Nxf8 {[%emt 0:00:08]} Kxf8 {[%emt 0:00:05]} 19. h4 {[%emt 0:01:50]} b4 {[%emt 0:05:57]} 20. Na4 {[%emt 0:02:53]} c5 {[%emt 0:00:45]} 21. c3 {[%emt 0:00:49]} Nxe2+ {[%emt 0:02:03]} 22. Qxe2 {[%emt 0:00:17]} Qa5 {[%emt 0:00:13]} 23. Qc2 {[%emt 0:02:27]} Be6 {[%emt 0:00:41]} 24. b3 {[%emt 0:06:13]} c4 {[%emt 0:00:58]} 25. h5 {[%emt 0:05:16]} cxb3 {[%emt 0:00:44]} 26. axb3 {[%emt 0:00:07]} bxc3 {[%emt 0:00:14]} 27. Rd3 {[%emt 0:03:05]} Nc6 {[%emt 0:07:08]} 28. Rxc3 {[%emt 0:02:22]} Nd4 {[%emt 0:00:25]} 29. Qb2 {[%emt 0:03:21]} Nxb3+ {[%emt 0:11:08]} (29... Rb8 $11 {keeps the balance.} 30. h6 Kg8 31. h7+ Kh8) 30. Rxb3 {[%emt 0:00:30]} Qxa4 {[%emt 0:00:06]} 31. Qa3+ {[%emt 0:01:21]} ({Don't take} 31. Rb8+ Rxb8 32. Qxb8+ Ke7 $18) 31... Qxa3+ {[%emt 0:00:55]} 32. Rxa3 {[%emt 0:00:06]} Rc8+ {[%emt 0:07:10]} 33. Kd2 {[%emt 0:00:12]} Rc7 $18 {[%emt 0:00:01]} (33... Kg7 $142 34. Ra5 (34. Rxa7 Rc4 $18) 34... Rb8 35. Rxe5 (35. Rxa7 Rb2+ 36. Kd3 Rb3+ 37. Kc2 Re3 $16) 35... Rb2+ 36. Ke3 Ra2 37. hxg6 Kxg6) 34. hxg6 {[%emt 0:00:25]} fxg6 {[%emt 0:00:05]} 35. Rh8+ {[%emt 0:00:17]} Kg7 {[%emt 0:00:47]} 36. Ra8 {[%emt 0:00:14]} Rd7+ {[%emt 0:00:06]} 37. Ke3 {[%emt 0:00:20]} Rd1 {[%emt 0:00:22]} 38. R3xa7+ {[%emt 0:01:46]} Kf6 {[%emt 0:00:02]} 39. Rf8+ {[%emt 0:00:25]} Kg5 {[%emt 0:00:05]} 40. Re8 {[%emt 0:00:12]} Bg4 {[%emt 0:02:44]} 41. Rxe5+ {[%emt 0:01:09]} Kf6 {[%emt 0:00:04]} 42. Rd5 {[%emt 0:00:16]} Re1+ {[%emt 0:02:32]} 43. Kf4 {[%emt 0:00:12]} 1-0

[Event "Torneo Interdepartamental 2019"]
[Site "Montevideo"]
[Date "2019.08.25"]
[Round "5.10"]
[White "Miraballes Lopez, Andres"]
[Black "Dominguez, Facundo"]
[Result "0-1"]
[ECO "B21"]
[WhiteElo "1664"]
[BlackElo "2138"]
[Annotator "NA"]
[PlyCount "48"]
[EventDate "2019.08.23"]
[EventType "team-tourn"]
[EventCountry "URU"]
[SourceTitle "playchess.com"]
[Source "ChessBase"]
[SourceQuality "1"]
[TimeControl "5400+30"]

1. e4 {[%emt 0:00:00]} c5 {[%emt 0:00:00]} 2. d4 {[%emt 0:00:00]} cxd4 {[%emt 0:00:00]} 3. c3 {[%emt 0:01:34]} d3 {[%emt 0:00:19]} 4. Bxd3 {[%emt 0:00:07]} Nc6 {[%emt 0:00:17]} 5. Nf3 {[%emt 0:00:30]} d6 {[%emt 0:00:10]} 6. Be3 {[%emt 0:00:45]} Nf6 {[%emt 0:00:35]} 7. c4 {[%emt 0:01:12]} g6 {[%emt 0:01:54]} 8. Nc3 {[%emt 0:00:57]} Bg7 {[%emt 0:00:41]} 9. h3 {[%emt 0:01:34]} O-O {[%emt 0:02:23]} 10. Qd2 {[%emt 0:01:37]} b6 {[%emt 0:03:14]} 11. Bh6 {[%emt 0:01:48]} Bb7 {[%emt 0:02:36]} 12. Bxg7 {[%emt 0:02:53]} Kxg7 {[%emt 0:00:07]} 13. g4 {[%emt 0:02:51]} Ne5 {[%emt 0:05:42]} 14. Nxe5 {[%emt 0:04:59]} dxe5 {[%emt 0:00:08]} 15. f3 {[%emt 0:00:28]} h6 {[%emt 0:02:21]} 16. O-O-O {[%emt 0:02:30]} Nd7 {[%emt 0:01:53]} 17. h4 {[%emt 0:02:00]} Nc5 {[%emt 0:01:16]} 18. Nd5 {[%emt 0:03:02]} e6 {[%emt 0:04:18]} 19. Ne3 {[%emt 0:00:26]} Qf6 {[%emt 0:02:55]} 20. Qf2 {[%emt 0:05:23]} Nxd3+ {[%emt 0:01:58]} 21. Rxd3 {[%emt 0:00:16]} Bxe4 {[%emt 0:00:04]} 22. Rd2 {[%emt 0:01:50]} Qxf3 {[%emt 0:00:23]} 23. Re1 {[%emt 0:02:49]} Rad8 {[%emt 0:01:41]} 24. Rxd8 {[%emt 0:04:29]} Qxf2 {[%emt 0:00:14]} 0-1

[Event "Torneo Interdepartamental 2019"]
[Site "Montevideo"]
[Date "2019.08.25"]
[Round "5.11"]
[White "Caitano, Martin Joel"]
[Black "Silvera, Pilar"]
[Result "1-0"]
[ECO "A83"]
[WhiteElo "2119"]
[BlackElo "1221"]
[Annotator "ChessBase"]
[PlyCount "75"]
[EventDate "2019.08.23"]
[EventType "team-tourn"]
[EventCountry "URU"]
[SourceTitle "playchess.com"]
[Source "ChessBase"]
[SourceQuality "1"]
[TimeControl "5400+30"]

1. d4 {[%emt 0:00:00]} f5 {[%emt 0:00:00]} 2. e4 {[%emt 0:00:00]} fxe4 {[%emt 0:00:00]} 3. Nc3 {[%emt 0:00:00]} Nf6 {[%emt 0:00:00]} 4. Bg5 {[%emt 0:00:07]} e6 {[%emt 0:06:32]} 5. Nxe4 {[%emt 0:04:38]} Be7 {[%emt 0:00:15]} 6. Bxf6 {[%emt 0:00:58]} Bxf6 {[%emt 0:00:10]} 7. Nf3 {[%emt 0:00:27]} d6 {[%emt 0:04:29]} 8. Bd3 {[%emt 0:02:05]} Nc6 {[%emt 0:03:33]} 9. O-O {[%emt 0:03:17]} O-O {[%emt 0:06:52]} 10. c3 {[%emt 0:04:06]} Bd7 {[%emt 0:01:51]} 11. Re1 {[%emt 0:00:56]} Ne7 {[%emt 0:08:55]} 12. Neg5 {[%emt 0:00:59]} Bxg5 {[%emt 0:06:43]} 13. Nxg5 {[%emt 0:00:24]} Nf5 {[%emt 0:00:41]} 14. Nxe6 {[%emt 0:01:23]} Bxe6 {[%emt 0:00:10]} 15. Rxe6 {[%emt 0:00:08]} Qd7 {[%emt 0:02:17]} 16. Qe2 {[%emt 0:01:09]} Rf7 {[%emt 0:04:02]} 17. Re1 {[%emt 0:00:41]} Raf8 {[%emt 0:01:22]} 18. Re8 {[%emt 0:02:41]} g6 {[%emt 0:14:02]} 19. Qe6 {[%emt 0:11:33]} Qxe6 {[%emt 0:04:34]} 20. R8xe6 {[%emt 0:02:06]} Kg7 {[%emt 0:03:37]} 21. g3 {[%emt 0:05:09]} Nh6 {[%emt 0:03:17]} 22. f4 {[%emt 0:00:41]} Ng4 {[%emt 0:12:25]} 23. Bc4 {[%emt 0:03:18]} Nf6 {[%emt 0:05:35]} 24. Re7 {[%emt 0:01:34]} d5 {[%emt 0:00:20]} 25. Bd3 {[%emt 0:00:18]} Rxe7 {[%emt 0:02:25]} 26. Rxe7+ {[%emt 0:00:08]} Rf7 {[%emt 0:00:05]} 27. Rxf7+ {[%emt 0:02:45]} Kxf7 {[%emt 0:00:09]} 28. h3 {[%emt 0:00:18]} Ke6 {[%emt 0:01:56]} 29. Kf2 {[%emt 0:00:14]} Nh5 {[%emt 0:01:17]} 30. Kf3 {[%emt 0:00:42]} Kf6 {[%emt 0:00:59]} 31. g4 {[%emt 0:01:44]} Ng7 {[%emt 0:00:06]} 32. g5+ {[%emt 0:01:19]} Kf7 {[%emt 0:00:34]} 33. Kg4 {[%emt 0:00:28]} Ke6 {[%emt 0:01:38]} 34. h4 {[%emt 0:00:46]} c6 {[%emt 0:00:17]} 35. a4 {[%emt 0:03:32]} b6 {[%emt 0:02:00]} 36. b4 {[%emt 0:00:54]} a5 {[%emt 0:01:18]} 37. bxa5 {[%emt 0:03:27]} bxa5 {[%emt 0:00:10]} 38. Bc2 {[%emt 0:01:11]} 1-0

[Event "Torneo Interdepartamental 2019"]
[Site "Montevideo"]
[Date "2019.08.25"]
[Round "5.12"]
[White "Escofet, Jaime"]
[Black "Ibanez, Marcelo"]
[Result "1-0"]
[ECO "B42"]
[WhiteElo "1999"]
[BlackElo "2029"]
[Annotator "NA"]
[PlyCount "67"]
[EventDate "2019.08.23"]
[EventType "team-tourn"]
[EventCountry "URU"]
[SourceTitle "playchess.com"]
[Source "ChessBase"]
[SourceQuality "1"]
[TimeControl "5400+30"]

1. e4 {[%emt 0:00:00]} c5 {[%emt 0:03:30]} 2. Nf3 {[%emt 0:00:00]} e6 {[%emt 0:00:50]} 3. d4 {[%emt 0:00:00]} cxd4 {[%emt 0:00:22]} 4. Nxd4 {[%emt 0:00:05]} a6 {[%emt 0:00:05]} 5. Bd3 {[%emt 0:00:22]} Nc6 {[%emt 0:04:29]} 6. Nxc6 {[%emt 0:00:35]} bxc6 {[%emt 0:04:03]} 7. c4 {[%emt 0:00:50]} Bb4+ {[%emt 0:04:52]} 8. Bd2 {[%emt 0:00:57]} Qb6 {[%emt 0:03:18]} 9. O-O {[%emt 0:00:32]} Bxd2 {[%emt 0:04:01]} 10. Qxd2 {[%emt 0:00:20]} Rb8 {[%emt 0:00:31]} 11. b3 {[%emt 0:00:19]} Ne7 {[%emt 0:06:26]} 12. Nc3 {[%emt 0:01:00]} Ng6 {[%emt 0:07:19]} 13. Rad1 {[%emt 0:03:59]} O-O {[%emt 0:07:27]} 14. Be2 {[%emt 0:07:14]} e5 {[%emt 0:15:20]} 15. Na4 {[%emt 0:03:31]} Qa7 {[%emt 0:01:02]} 16. c5 {[%emt 0:00:24]} Rd8 {[%emt 0:01:29]} 17. Bc4 {[%emt 0:00:32]} Rb7 {[%emt 0:10:07]} 18. Qg5 {[%emt 0:01:47]} Re8 {[%emt 0:00:25]} 19. Rd6 {[%emt 0:01:07]} Rb4 {[%emt 0:03:00]} 20. Nb6 {[%emt 0:01:47]} Rxc4 {[%emt 0:01:59]} 21. bxc4 {[%emt 0:00:27]} f6 {[%emt 0:03:06]} 22. Qg4 {[%emt 0:01:34]} Qc7 {[%emt 0:13:26]} 23. Nxc8 {[%emt 0:06:47]} Qxc8 {[%emt 0:00:51]} 24. Qxd7 {[%emt 0:00:09]} Qxd7 {[%emt 0:00:59]} 25. Rxd7 {[%emt 0:00:06]} Nf4 {[%emt 0:00:13]} 26. Rb1 {[%emt 0:00:28]} Ne6 {[%emt 0:01:23]} 27. Rbb7 {[%emt 0:00:24]} h5 {[%emt 0:00:15]} 28. f3 {[%emt 0:00:22]} Kh7 {[%emt 0:00:05]} 29. Re7 {[%emt 0:00:19]} Rxe7 {[%emt 0:00:06]} 30. Rxe7 {[%emt 0:00:08]} Nxc5 {[%emt 0:00:02]} 31. Rc7 {[%emt 0:00:10]} Nd3 {[%emt 0:02:28]} 32. Rxc6 {[%emt 0:01:00]} Nb4 {[%emt 0:00:02]} 33. Rb6 {[%emt 0:00:09]} Nxa2 {[%emt 0:00:12]} 34. c5 {[%emt 0:00:37]} 1-0